[Event "Caplin Hastings Masters 2023-24"]
[Site "Hastings"]
[Date "2023.12.31"]
[Round "4.2"]
[White "Laurent-Paoli, Pierre"]
[Black "Royal, Shreyas"]
[Result "1/2-1/2"]
[ECO "C78"]
[WhiteElo "2524"]
[BlackElo "2438"]
[Annotator "TA"]
[PlyCount "94"]
[EventDate "2023.12.18"]
[EventType "swiss"]
[EventCountry "ENG"]
[SourceTitle "playchess.com"]
[Source "ChessBase"]
[SourceQuality "1"]
[TimeControl "40/6000+30:3000+30"]

{[%evp 17,94,35,35,18,22,8,7,15,3,0,0,0,0,0,0,-3,-8,-19,0,0,0,0,0,0,0,0,0,0,0,-46,-8,-13,0,-128,-142,-132,-119,-236,-247,-235,-244,-227,-243,-222,-235,-240,-233,-245,-237,-224,-208,-255,-245,-241,-161,-162,-167,-159,-82,-98,-112,-122,-97,-153,14,14,0,0,0,0,0,0,0,0,0,0,0,0,0]} 1. e4 {[%emt 0:02:36]} e5 {[%emt 0:00:18]} 2. Nf3 {[%emt 0:00:29]} Nc6 {[%emt 0:00:08]} 3. Bb5 {[%emt 0:00:13]} a6 {[%emt 0:00:07]} 4. Ba4 {[%emt 0:00:04]} Nf6 {[%emt 0:00:06]} 5. O-O {[%emt 0:00:07]} b5 {[%emt 0:00:13]} 6. Bb3 {[%emt 0:00:08]} Bc5 {[%emt 0:00:05]} 7. a4 {[%emt 0:01:14]} Rb8 {[%emt 0:00:07]} 8. c3 {[%emt 0:00:20]} d6 {[%emt 0:00:06]} 9. d4 {[%emt 0:00:11]} Bb6 {[%emt 0:00:05]} 10. a5 {[%emt 0:01:14] C78: Ruy Lopez: Archangelsk and Möller Defences.} Ba7 {[%emt 0:00:09]} (10... Bxa5 $2 11. dxe5 (11. d5 Ne7 $18) 11... dxe5 12. Qxd8+ Kxd8 13. Bd5 (13. Bxf7 Bb6 $16) 13... Nxd5 14. exd5 $18) 11. h3 {[%emt 0:01:08]} Bb7 {[%emt 0:00:06]} 12. Be3 {[%emt 0:01:03]} Nxe4 {[%emt 0:00:12]} 13. Re1 {[%emt 0:00:11]} exd4 {[%emt 0:01:16]} 14. Bg5 {[%emt 0:00:21]} Ne7 {[%emt 0:00:45] White must now prevent ...0-0.} 15. Nbd2 {[%emt 0:00:50]} d5 {[%emt 0:01:27] Strongly threatening ...Nxg5.} (15... Nxg5 16. Nxg5 d5 17. Qh5 $14) 16. Nxe4 {[%emt 0:00:09]} (16. Nxd4 $2 Nxg5 17. Qh5 Bxd4 18. cxd4 h6 $19) 16... dxe4 {[%emt 0:00:05]} 17. Nxd4 {[%emt 0:00:05] [#]} Qd6 $146 {[%emt 0:09:38]} ({Predecessor:} 17... c5 18. Nf5 Qxd1 19. Nxg7+ Kf8 20. Raxd1 Kxg7 21. Bxe7 c4 22. Bc2 e3 23. fxe3 Bc6 {1-0 Niedbala,B (2407)-Bizhigitov,Z (2261) Wch U18 Mamaia 2022 (9)}) 18. Be3 {[%emt 0:19:43][%cal Od4b5]} Ra8 {[%emt 0:17:19]} 19. Qh5 {[%emt 0:23:43]} O-O {[%emt 0:07:37]} 20. Rad1 {[%emt 0:05:09][%cal Od4b5] Nxb5! would be deadly.} Qf6 {[%emt 0:01:42]} 21. Qg4 {[%emt 0:15:46]} Rfe8 {[%emt 0:15:44]} 22. Qd7 {[%emt 0:12:39]} Rac8 {[%emt 0:00:20]} 23. Qg4 {[%emt 0:11:29]} (23. Ne2 $11 {deserves consideration.} Bb8 24. Ng3) 23... c5 {[%emt 0:05:57][%cal Bc7c5,Bc5c4][%mdl 32]} (23... Qg6 {simplifies} 24. Nf5 Qxf5 25. Qxf5 Nxf5 26. Bxa7 Bc6) 24. Bg5 {[%emt 0:07:50]} Qg6 {[%emt 0:00:27]} 25. Nxb5 {[%emt 0:01:17]} axb5 $17 {[%emt 0:13:12]} 26. Rd7 {[%emt 0:00:01]} h5 {[%emt 0:00:31]} 27. Qh4 {[%emt 0:01:16]} (27. Qf4 $17 c4 28. Rxb7) 27... c4 $1 $19 {[%emt 0:01:57]} ({Don't play} 27... Nf5 28. Bxf7+ Qxf7 29. Rxf7 Nxh4 30. Rxb7 $18) 28. Rxb7 {[%emt 0:01:59]} Nf5 {[%emt 0:00:06]} 29. Qf4 {[%emt 0:00:15] Threatens to win with Bd1.} Bb8 {[%emt 0:00:07]} 30. Rxb8 {[%emt 0:00:36]} Rxb8 {[%emt 0:00:04]} 31. Bc2 {[%emt 0:00:08] [#]} f6 $1 {[%emt 0:01:16]} 32. Bh4 {[%emt 0:00:14]} Nxh4 {[%emt 0:00:41]} 33. Qxh4 {[%emt 0:00:04][%cal Rc2e4]} f5 {[%emt 0:00:37]} 34. Rd1 {[%emt 0:00:18]} Qh6 {[%emt 0:01:56] aiming for ...g5.} 35. Rd5 {[%emt 0:01:56]} Qc1+ {[%emt 0:03:17]} 36. Bd1 {[%emt 0:00:21]} Rf8 {[%emt 0:04:39]} ({Inferior is} 36... Qxb2 37. Bxh5 Rf8 38. Bg6 Qc1+ 39. Kh2 $11) 37. Kh2 {[%emt 0:01:19]} Rf6 {[%emt 0:02:12] Against Rd6} ({Not} 37... Qxb2 38. Bxh5 Rf6 39. a6 $11) ({Black should try} 37... Qh6 38. b4 Qe6) 38. Bxh5 {[%emt 0:02:15]} g5 {[%emt 0:04:54]} 39. Qg3 {[%emt 0:00:01] [#]} Qf4 {[%emt 0:00:08]} 40. Be2 {[%emt 0:01:13]} (40. Qxf4 $142 gxf4 41. g3) 40... Kf7 $2 {[%emt 0:01:10] [#]} (40... Kf8 $17 {...Ke7 is the strong threat.} 41. Rd7 Rf7) 41. Rxb5 $1 $11 {[%emt 0:04:07] The position is equal.} Rc8 {[%emt 0:02:44]} (41... Qxg3+ {simplifies} 42. fxg3 Rc8 43. Rb4 Rfc6) 42. a6 {[%emt 0:09:53]} Rxa6 {[%emt 0:08:05] Hoping for ...Kg6.} 43. Qxf4 {[%emt 0:01:00]} gxf4 {[%emt 0:00:03]} 44. Rxf5+ {[%emt 0:00:07]} Rf6 {[%emt 0:00:05]} 45. Re5 {[%emt 0:05:50]} f3 {[%emt 0:00:36]} 46. gxf3 {[%emt 0:00:18]} exf3 {[%emt 0:00:09]} 47. Bf1 {[%emt 0:00:24]} Rb6 {[%emt 0:00:23] Black had all chances to win. An interesting game.   Weighted Error Value: White=0.15 (very precise) /Black=0.14 (very precise)} 1/2-1/2

[Event "Caplin Hastings Masters 2023-24"]
[Site "Hastings"]
[Date "2023.12.31"]
[Round "4.3"]
[White "Gupta, Abhijeet"]
[Black "Cherniaev, Alexander"]
[Result "1/2-1/2"]
[ECO "E16"]
[WhiteElo "2596"]
[BlackElo "2381"]
[Annotator "TA"]
[PlyCount "194"]
[EventDate "2023.12.18"]
[EventType "swiss"]
[EventCountry "ENG"]
[SourceTitle "playchess.com"]
[Source "ChessBase"]
[SourceQuality "1"]
[TimeControl "40/6000+30:3000+30"]

{[%evp 13,194,20,20,12,14,11,21,7,22,16,11,8,9,2,13,0,0,0,0,0,0,4,27,25,27,17,31,33,29,28,56,51,66,45,69,71,129,91,117,54,73,55,43,58,137,133,249,254,251,251,251,250,234,233,234,122,120,122,135,108,410,103,88,6,12,4,2,2,18,18,18,0,0,-9,0,0,0,0,0,0,0,0,0,0,0,0,0,0,0,0,0,0,0,0,80,79,79,80,80,79,80,67,67,67,72,75,80,80,80,80,80,80,80,80,80,80,80,80,80,80,80,80,80,0,80,0,80,80,80,60,80,0,0,0,0,0,0,0,0,0,0,0,0,0,0,0,0,0,0,0,0,0,0,0,0,0,0,0,0,0,0,0,0,0,0,0,0,0,0,0,0,0,0,0,0,0,0,0,0,0,0,0,0]} 1. d4 {[%emt 0:00:06]} d5 {[%emt 0:00:06]} 2. c4 {[%emt 0:00:34]} e6 {[%emt 0:00:06]} 3. Nf3 {[%emt 0:00:33]} Nf6 {[%emt 0:00:56]} 4. g3 {[%emt 0:00:39]} Bb4+ {[%emt 0:00:25]} 5. Nbd2 {[%emt 0:00:27]} O-O {[%emt 0:00:19]} 6. Bg2 {[%emt 0:00:08]} b6 {[%emt 0:00:16]} 7. O-O {[%emt 0:01:08]} Bb7 {[%emt 0:02:58]} 8. b3 {[%emt 0:00:29] E16: Queen's Indian: 4 g3 Bb7 5 Bg2 Bb4+.} a5 {[%emt 0:00:38][%cal Ba7a5,Ba5a4][%mdl 32]} 9. Bb2 {[%emt 0:00:17]} a4 {[%emt 0:00:24]} 10. a3 {[%emt 0:00:20]} Bxd2 {[%emt 0:00:07]} 11. Nxd2 {[%emt 0:00:18]} axb3 {[%emt 0:00:07]} 12. Rc1 {[%emt 0:00:14] [#]} Nc6 $146 {[%emt 0:01:53]} ({Predecessor:} 12... Nbd7 13. Nxb3 Qc8 14. cxd5 Bxd5 15. f3 Qa6 16. e4 Bc4 17. Rf2 c5 18. dxc5 bxc5 {½-½ Straka,J (2075)-Perrin,R (2137) WS TT/6/20/3 email 2020}) 13. Qxb3 {[%emt 0:03:46]} Na5 {[%emt 0:01:47]} 14. Qc2 {[%emt 0:00:37]} c6 {[%emt 0:26:58]} 15. Rfe1 {[%emt 0:13:05]} Ba6 {[%emt 0:05:53]} 16. cxd5 {[%emt 0:10:25]} cxd5 {[%emt 0:00:32]} 17. Bc3 {[%emt 0:01:14]} Re8 {[%emt 0:20:42]} 18. e4 {[%emt 0:06:11][%cal Be2e4,Be4e5][%mdl 32]} Nc4 {[%emt 0:02:29]} 19. e5 {[%emt 0:02:18]} Nd7 {[%emt 0:03:54]} 20. Nxc4 {[%emt 0:02:43]} Bxc4 {[%emt 0:00:06]} 21. Bb4 {[%emt 0:00:06]} Qg5 {[%emt 0:04:34]} 22. h4 {[%emt 0:04:50][%cal Bh2h4,Bh4h5][%mdl 32]} Qg6 {[%emt 0:02:35]} 23. Qd1 {[%emt 0:00:54] And now Rxc4 would win.} b5 {[%emt 0:10:32]} 24. Rc3 {[%emt 0:04:14]} (24. h5 {seems wilder.} Qd3 25. Qg4 Qf5 26. Qxf5 exf5 27. Bh3) 24... f6 {[%emt 0:00:47]} (24... Nb8 $142) 25. h5 {[%emt 0:04:24]} Qf7 {[%emt 0:02:14]} 26. f4 {[%emt 0:03:01] Black is weak on the dark squares} ({White should play} 26. g4 $16) 26... Kh8 {[%emt 0:08:44]} 27. Rce3 {[%emt 0:00:42]} f5 {[%emt 0:00:54]} 28. g4 {[%emt 0:00:36]} fxg4 {[%emt 0:05:43]} (28... Nb8 $1 $14) 29. Qxg4 $16 {[%emt 0:00:19]} g6 {[%emt 0:00:26]} (29... Nb8 $16) 30. hxg6 $18 {[%emt 0:13:16]} Qxg6 {[%emt 0:00:21]} 31. Qxg6 {[%emt 0:00:37]} hxg6 {[%emt 0:00:06]} 32. Kf2 {[%emt 0:00:11]} Kg7 {[%emt 0:00:23]} 33. Rg3 {[%emt 0:00:37]} Kf7 {[%emt 0:01:44]} 34. Rg1 {[%emt 0:00:12]} (34. Bh3 $18) 34... Rh8 $16 {[%emt 0:01:32]} 35. Ke3 {[%emt 0:00:40]} Rag8 {[%emt 0:00:57]} 36. Bh3 {[%emt 0:02:39][%cal Oh3e6] Strongly threatening Bxe6+!} Bb3 $2 {[%emt 0:05:19][%mdl 8192] [#]} (36... Re8 $16) 37. Bg4 $2 {[%emt 0:05:23]} (37. Bxe6+ $1 $18 {is the precise move to win.} Kxe6 38. Rxg6+ Rxg6 39. Rxg6+ Kf5 40. Rg5+ Ke6 41. f5+ Kf7 42. Rg6) 37... Bc2 {[%emt 0:00:17]} 38. Be2 {[%emt 0:01:18] This pair of bishops is nice.} ({White should try} 38. Rc1 $16 Rc8 39. Rh3 Rxh3+ 40. Bxh3) 38... Nb6 $1 $11 {[%emt 0:00:36]} 39. Rc1 {[%emt 0:01:44]} Rc8 {[%emt 0:00:45]} 40. Bc5 {[%emt 0:01:52]} Bf5 {[%emt 0:00:09]} 41. Bxb5 {[%emt 0:50:30]} Rh2 {[%emt 0:02:04]} 42. a4 {[%emt 0:00:00]} (42. Ba6 $5 {[%cal Ra6c8]} Ra8 43. Bxb6 Rxa6 44. Rc7+ Kg8 45. Rc8+ Kh7 46. Rc7+ Kg8 47. Rc8+ Kh7 48. Rc7+ Kg8 $14) 42... Ra2 {[%emt 0:16:27]} 43. Rgg1 {[%emt 0:00:00] [#]} Rh8 $1 {[%emt 0:05:00] ( -> ...Rh3+)} 44. Rh1 {[%emt 0:00:00]} (44. Bxb6 $2 {is a self mate.} Rh3+) 44... Rxh1 {[%emt 0:00:13]} 45. Rxh1 {[%emt 0:00:00]} Nc4+ {[%emt 0:00:49]} 46. Bxc4 {[%emt 0:00:00]} dxc4 {[%emt 0:00:02][%mdl 4096] Endgame KRB-KRB} 47. Rh7+ {[%emt 0:00:00]} Kg8 {[%emt 0:01:00]} 48. Rc7 {[%emt 0:00:00]} c3 {[%emt 0:04:14][%cal Oc3c2]} 49. Bb4 {[%emt 0:00:00]} c2 {[%emt 0:01:01]} 50. a5 {[%emt 0:00:00]} Ra1 {[%emt 0:00:10]} 51. Bd2 {[%emt 0:00:00]} Ra3+ {[%emt 0:01:04]} 52. Ke2 {[%emt 0:00:00]} Bd3+ {[%emt 0:05:47]} 53. Kf2 {[%emt 0:00:00][%cal Od4d5]} Be4 {[%emt 0:02:19] [#] Against d5} (53... Bf5 $11) 54. d5 $1 $16 {[%emt 0:00:00][%mdl 64] Deflection} Bxd5 {[%emt 0:02:42]} 55. Rxc2 {[%emt 0:00:00]} Kf7 {[%emt 0:01:32]} 56. Rc7+ {[%emt 0:00:00]} Ke8 {[%emt 0:00:22]} 57. Ke2 {[%emt 0:00:00]} Kd8 {[%emt 0:00:12]} 58. Rg7 {[%emt 0:00:00]} Be4 {[%emt 0:00:12]} 59. Bb4 {[%emt 0:00:00]} Ra4 {[%emt 0:00:41]} 60. Bc5 {[%emt 0:00:00]} Kc8 {[%emt 0:00:05]} 61. Bb6 {[%emt 0:00:00]} Ra3 {[%emt 0:02:20]} 62. Kd2 {[%emt 0:00:00]} Kb8 {[%emt 0:01:24]} 63. Rd7 {[%emt 0:00:00]} Bf5 {[%emt 0:00:42]} 64. Re7 {[%emt 0:00:00]} Kc8 {[%emt 0:01:19]} 65. Ke2 {[%emt 0:00:00]} Kb8 {[%emt 0:00:21]} 66. Rc7 {[%emt 0:00:00] White is more active.} Be4 {[%emt 0:00:59]} 67. Kd2 {[%emt 0:00:00]} Bf5 {[%emt 0:00:09]} 68. Re7 {[%emt 0:01:54]} Kc8 $1 {[%emt 0:00:18]} 69. Ke2 {[%emt 0:00:17]} Kb8 $1 {[%emt 0:00:11]} 70. Kf2 {[%emt 0:00:05]} Kc8 {[%emt 0:00:27]} 71. Bc7 {[%emt 0:02:35]} Bg4 {[%emt 0:04:19]} 72. Bd6 {[%emt 0:02:19]} (72. Kg2 $16) 72... Rxa5 $11 {[%emt 0:00:11] The position is equal.} 73. Kg3 {[%emt 0:00:03]} Bf5 {[%emt 0:00:12]} 74. Kh4 {[%emt 0:00:04]} Rb5 {[%emt 0:00:12]} 75. Rc7+ {[%emt 0:00:18]} Kd8 {[%emt 0:00:35]} 76. Kg5 {[%emt 0:00:09]} Rb1 {[%emt 0:00:27]} 77. Kf6 {[%emt 0:01:37]} Rf1 {[%emt 0:00:59]} 78. Rc4 {[%emt 0:00:07]} Kd7 {[%emt 0:00:24]} 79. Bb4 {[%emt 0:00:20]} Rf3 {[%emt 0:00:31]} 80. Ba5 {[%emt 0:00:31]} Ra3 {[%emt 0:01:15]} 81. Rc5 {[%emt 0:00:24]} Ra4 {[%emt 0:00:19]} 82. Kf7 {[%emt 0:00:25]} Ra2 {[%emt 0:00:24]} 83. Bb6 {[%emt 0:00:38] Black must now prevent Rc7+.} Ra6 {[%emt 0:00:41]} 84. Rc7+ {[%emt 0:01:58]} Kd8 {[%emt 0:00:02]} 85. Rc6+ {[%emt 0:00:05]} Kd7 {[%emt 0:00:05]} 86. Rd6+ {[%emt 0:00:06]} Kc8 {[%emt 0:00:04]} 87. Ke7 {[%emt 0:00:40]} Kb7 {[%emt 0:00:19]} 88. Bd4 {[%emt 0:00:12]} Rc6 {[%emt 0:00:11]} 89. Bf2 {[%emt 0:00:25]} Rc7+ {[%emt 0:01:03]} 90. Kf6 {[%emt 0:00:05]} Rc6 {[%emt 0:00:07]} 91. Be1 {[%emt 0:00:09]} Rc4 {[%emt 0:00:28]} 92. Bd2 {[%emt 0:00:08]} Rc6 {[%emt 0:00:06]} 93. Rd4 {[%emt 0:00:41]} Kb6 {[%emt 0:00:30]} 94. Ke7 {[%emt 0:00:20]} Rc7+ {[%emt 0:00:34]} 95. Kd8 {[%emt 0:00:06] Rb4+ would be deadly.} Rh7 {[%emt 0:00:27]} 96. Bb4 {[%emt 0:00:13]} Kc6 {[%emt 0:00:17]} 97. Rd6+ {[%emt 0:00:48]} Kb5 {[%emt 0:00:14] Black escapes into a draw.   Weighted Error Value: White=0.19 (very precise) /Black=0.19 (very precise)} 1/2-1/2

[Event "Caplin Hastings Masters 2023-24"]
[Site "Hastings"]
[Date "2023.12.31"]
[Round "4.4"]
[White "Boyer, Mahel"]
[Black "Lagarde, Maxime"]
[Result "1/2-1/2"]
[ECO "D94"]
[WhiteElo "2427"]
[BlackElo "2640"]
[Annotator "TA"]
[PlyCount "36"]
[EventDate "2023.12.18"]
[EventType "swiss"]
[EventCountry "ENG"]
[SourceTitle "playchess.com"]
[Source "ChessBase"]
[SourceQuality "1"]
[TimeControl "40/6000+30:3000+30"]

{[%evp 24,36,0,0,20,17,18,3,33,45,41,20,66,45,77]} 1. Nf3 {[%emt 0:03:09]} Nf6 {[%emt 0:00:05]} 2. c4 {[%emt 0:02:25]} g6 {[%emt 0:01:21]} 3. d4 {[%emt 0:02:55]} Bg7 {[%emt 0:00:06]} 4. Nc3 {[%emt 0:00:25]} d5 {[%emt 0:00:05]} 5. e3 {[%emt 0:04:12]} O-O {[%emt 0:01:53]} 6. cxd5 {[%emt 0:00:08]} Nxd5 {[%emt 0:00:04]} 7. Bc4 {[%emt 0:00:04]} Nb6 {[%emt 0:02:12]} 8. Bb3 {[%emt 0:00:07]} c5 {[%emt 0:00:44]} 9. O-O {[%emt 0:00:08]} cxd4 {[%emt 0:13:32]} 10. exd4 {[%emt 0:00:22]} Bg4 {[%emt 0:01:04]} 11. d5 {[%emt 0:05:33]} N8d7 {[%emt 0:04:41]} 12. h3 {[%emt 0:00:11]} Bxf3 {[%emt 0:00:07]} 13. Qxf3 {[%emt 0:00:03]} a5 {[%emt 0:07:26] D94: Grünfeld: 4 Nf3 Bg7 5 e3.} 14. a3 {[%emt 0:37:53]} Nc5 {[%emt 0:16:24]} 15. Ba2 {[%emt 0:00:36] [#]} Qd7 $146 {[%emt 0:01:19]} ({Predecessor:} 15... Nba4 16. Nxa4 Nxa4 17. Re1 Ra6 18. Bg5 Bf6 19. Bxf6 exf6 20. b4 Qd6 21. Bb3 Nb6 {½-½ Fernandez Gonzalez,J (2385)-Nogueiras Santiago,J (2435) Aniversario Radio Rebelde 1979 (8)}) 16. Re1 {[%emt 0:05:21]} Rfe8 {[%emt 0:01:36]} 17. Bg5 {[%emt 0:04:56]} h6 {[%emt 0:03:14]} (17... Nc8 $11) 18. Bh4 $14 {[%emt 0:02:29]} Nc8 {[%emt 0:10:31] Black got outplayed after the opening.   Weighted Error Value: White=0.04 (flawless) /Black=0.19 (very precise)} 1/2-1/2

[Event "Caplin Hastings Masters 2023-24"]
[Site "Hastings"]
[Date "2023.12.31"]
[Round "4.5"]
[White "Ghasi, Ameet K"]
[Black "Arkell, Keith C"]
[Result "1/2-1/2"]
[ECO "A11"]
[WhiteElo "2509"]
[BlackElo "2371"]
[Annotator "TA"]
[PlyCount "45"]
[EventDate "2023.12.18"]
[EventType "swiss"]
[EventCountry "ENG"]
[SourceTitle "playchess.com"]
[Source "ChessBase"]
[SourceQuality "1"]
[TimeControl "40/6000+30:3000+30"]

{[%evp 12,45,20,20,13,17,19,16,11,13,19,20,18,12,20,20,11,16,19,15,20,12,22,0,8,-26,-16,-69,0,0,66,17,47,-40,-33,-17]} 1. Nf3 {[%emt 0:01:28]} Nf6 {[%emt 0:00:17]} 2. g3 {[%emt 0:00:53]} d5 {[%emt 0:00:37]} 3. Bg2 {[%emt 0:00:43]} Bg4 {[%emt 0:02:00]} 4. c4 {[%emt 0:01:46]} c6 {[%emt 0:01:13]} 5. Ne5 {[%emt 0:01:27]} Bf5 {[%emt 0:03:44]} 6. cxd5 {[%emt 0:02:25]} cxd5 {[%emt 0:00:05]} 7. Nc3 {[%emt 0:01:34] Threatening Qa4+.} Nc6 {[%emt 0:09:16] A11: English Opening: 1...c6.} 8. Qa4 {[%emt 0:07:40]} Bd7 {[%emt 0:04:19]} 9. Nxd7 {[%emt 0:00:31]} Qxd7 {[%emt 0:00:04] The position is equal.} 10. b4 {[%emt 0:09:09][%cal Bb2b4,Bb4b5][%mdl 32] [#]} e6 $146 {[%emt 0:01:11]} ({Predecessor:} 10... b5 11. Nxb5 Rb8 12. Ba3 Nxb4 13. Bxb4 Qxb5 14. Qxb5+ Rxb5 15. Bc3 e6 16. O-O Nd7 {1-0 Abergel,T (2450)-Lukin,E (2196) Netanya op 2019 (8)}) 11. b5 {[%emt 0:14:59]} Ne5 {[%emt 0:01:10]} 12. O-O {[%emt 0:03:43]} Be7 {[%emt 0:05:13]} 13. d3 {[%emt 0:09:09]} O-O {[%emt 0:03:27]} 14. Bb2 {[%emt 0:00:11][%cal Oc3d5]} Ng6 {[%emt 0:00:23]} 15. Qb3 {[%emt 0:02:58]} a6 {[%emt 0:18:44]} 16. Rac1 {[%emt 0:04:00]} Rfd8 {[%emt 0:04:10]} 17. a4 {[%emt 0:02:12]} h5 {[%emt 0:04:38]} 18. h4 {[%emt 0:07:27]} Ng4 {[%emt 0:02:54][%cal Og6h4] With the idea ...Nxh4!} 19. d4 {[%emt 0:20:42]} (19. Bh3 $11) 19... f5 {[%emt 0:03:37]} ({Better is} 19... Bxh4 $1 $15 20. e4 (20. gxh4 $2 {is the wrong capture.} Qc7 $19) 20... Bg5) 20. Bf3 $11 {[%emt 0:01:36]} Nh8 {[%emt 0:07:34]} ({Black should play} 20... Bf6 $11) 21. e3 {[%emt 0:05:35]} (21. b6 $14 {deserves consideration.}) 21... Nf7 {[%emt 0:00:16]} 22. Ne2 {[%emt 0:01:24]} (22. Kg2 $14) 22... g5 {[%emt 0:09:05]} 23. b6 {[%emt 0:03:02] Weighted Error Value: White=0.19 (very precise) /Black=0.14 (very precise)} 1/2-1/2

[Event "Caplin Hastings Masters 2023-24"]
[Site "Hastings"]
[Date "2023.12.31"]
[Round "4.6"]
[White "Willow, Jonah B"]
[Black "Petrov, Martin"]
[Result "1/2-1/2"]
[WhiteElo "2427"]
[BlackElo "2501"]
[Annotator "TA"]
[PlyCount "37"]
[EventDate "2023.12.18"]
[EventType "swiss"]
[EventCountry "ENG"]
[SourceTitle "playchess.com"]
[Source "ChessBase"]
[SourceQuality "1"]
[TimeControl "40/6000+30:3000+30"]

{[%evp 16,18,11,15,0]} 1. e4 {[%emt 0:00:02]} e6 {[%emt 0:00:26]} 2. d4 {[%emt 0:00:59]} d5 {[%emt 0:02:19]} 3. Nc3 {[%emt 0:05:14]} Nf6 {[%emt 0:00:05]} 4. e5 {[%emt 0:00:35]} Nfd7 {[%emt 0:00:05]} 5. f4 {[%emt 0:00:24]} c5 {[%emt 0:00:05]} 6. Nf3 {[%emt 0:00:05]} Nc6 {[%emt 0:00:04]} 7. Be3 {[%emt 0:00:10]} cxd4 {[%emt 0:01:25]} 8. Nxd4 {[%emt 0:00:05]} Qb6 {[%emt 0:00:02]} 9. Qd2 {[%emt 0:07:17][%cal Od4e6] [#] aiming for Nxe6!} Qxb2 {[%emt 0:00:20] [#] Not much happened in this game.  C11: French: Classical System: 4 e5 and 4 Bg5 dxe4.} {Predecessor:} 10. Rb1 $146 Qa3 11. Bb5 Nxd4 12. Bxd4 a6 13. Bxd7+ Bxd7 14. Rb3 Qe7 15. Rxb7 Qh4+ 16. Qf2 Qxf2+ 17. Kxf2 Be7 18. Rhb1 Bd8 19. Ke3 {0-1 Duda,J (2731)-Grischuk,A (2745) Speed Chess Q2 KO blitz 2022 (1.7)} 1/2-1/2

[Event "Caplin Hastings Masters 2023-24"]
[Site "Hastings"]
[Date "2023.12.31"]
[Round "4.7"]
[White "Gasanov, Eldar"]
[Black "Gormally, Daniel W"]
[Result "1-0"]
[ECO "E60"]
[WhiteElo "2487"]
[BlackElo "2442"]
[Annotator "TA"]
[PlyCount "31"]
[EventDate "2023.12.18"]
[EventType "swiss"]
[EventCountry "ENG"]
[SourceTitle "playchess.com"]
[Source "ChessBase"]
[SourceQuality "1"]
[TimeControl "40/6000+30:3000+30"]

{[%evp 9,31,26,50,55,205,78,62,70,262,231,455,464,454,446,466,456,463,464,441,450,450,435,516,499]} 1. d4 {[%emt 0:02:27]} Nf6 {[%emt 0:00:07]} 2. c4 {[%emt 0:00:15]} g6 {[%emt 0:00:08]} 3. d5 {[%emt 0:04:30]} c6 {[%emt 0:01:37]} 4. Nc3 {[%emt 0:00:15]} b5 {[%emt 0:01:40]} 5. cxb5 {[%emt 0:07:23] [#]} cxd5 $146 {[%emt 0:00:40]} ({Predecessor:} 5... cxb5 6. Nxb5 Qa5+ 7. Nc3 Bg7 8. Qd4 O-O 9. Bd2 e5 10. dxe6 dxe6 11. Ne4 Qf5 {0-1 Quinteros,M-Poch,C Mar del Plata International-29 1971 (9)}) 6. Nxd5 {[%emt 0:00:18] E60: King's Indian: Unusual lines and Fianchetto Variation without Nc3.} Bg7 {[%emt 0:06:21]} ({Better is} 6... e6 $14 7. Nxf6+ Qxf6) 7. Nxf6+ {[%emt 0:27:28]} (7. Bf4 $18 {and the rest is easy. Strongly threatening Bc7.} O-O 8. Bc7) 7... Bxf6 $16 {[%emt 0:00:06]} 8. Qd5 {[%emt 0:00:01] White is slightly better.} O-O $2 {[%emt 0:00:20]} 9. Qxa8 {[%emt 0:04:17]} Qa5+ $2 {[%emt 0:13:38]} (9... Bxb2 {was worth a try.} 10. Bxb2 Qa5+ 11. Kd1 Qa4+ 12. Kc1 Qc4+ 13. Kd1 Qa4+ 14. Kc1 Qc4+ 15. Kd1 Qa4+) 10. Bd2 $18 {[%emt 0:01:56] White is clearly winning.} Qxb5 {[%emt 0:00:03] [#] White must now prevent ...Nc6.} 11. Qe4 {[%emt 0:03:16]} ({But not} 11. Qxa7 Qxb2 12. Rc1 Na6 $18) 11... Nc6 {[%emt 0:01:10]} 12. e3 {[%emt 0:03:12]} Qxb2 {[%emt 0:00:37]} 13. Rb1 {[%emt 0:00:24]} Qxa2 {[%emt 0:02:40] Threatens to win with ...d5.} 14. Bc4 {[%emt 0:01:15]} Qa3 {[%emt 0:00:03]} 15. Nf3 {[%emt 0:02:41] Repels Ne5} e6 {[%emt 0:00:37]} 16. Qd3 {[%emt 0:01:15] Weighted Error Value: White=0.14 (very precise) /Black=0.69} 1-0